[Event "Early-Titled-Tuesday-Blitz-May-07-2024"]
[Site "Chess.com"]
[Date "2024.05.07"]
[Round "11"]
[White "AlexeiShirov"]
[Black "Cipy77"]
[Result "1-0"]
[WhiteElo "2864"]
[BlackElo "2630"]
[TimeControl "180+1"]
[EndTime "10:14:39 PDT"]
[Termination "AlexeiShirov won by resignation"]

1. e4 {[%clk 0:03:00.9]} 1... c5 {[%clk 0:02:59.9]} 2. Nf3 {[%clk 0:03:00.5]}
2... d6 {[%clk 0:03:00.3]} 3. d4 {[%clk 0:03:01.1]} 3... cxd4 {[%clk 0:03:00.8]}
4. Nxd4 {[%clk 0:03:01.4]} 4... Nf6 {[%clk 0:03:01.1]} 5. Nc3 {[%clk 0:03:01.6]}
5... g6 {[%clk 0:02:54.5]} 6. Be3 {[%clk 0:03:01]} 6... Bg7 {[%clk 0:02:54.5]}
7. f3 {[%clk 0:03:01]} 7... a6 {[%clk 0:02:54.7]} 8. g4 {[%clk 0:02:52.4]} 8...
h5 {[%clk 0:02:52]} 9. g5 {[%clk 0:02:50.8]} 9... Nfd7 {[%clk 0:02:52.6]} 10. f4
{[%clk 0:02:45.8]} 10... Nc6 {[%clk 0:02:52.6]} 11. Bg2 {[%clk 0:02:32.8]} 11...
Qc7 {[%clk 0:02:50.7]} 12. Nd5 {[%clk 0:02:29.8]} 12... Qa5+ {[%clk 0:02:45.8]}
13. c3 {[%clk 0:02:26.7]} 13... e6 {[%clk 0:02:41.8]} 14. Nf6+ {[%clk
0:02:04.1]} 14... Nxf6 {[%clk 0:02:39]} 15. gxf6 {[%clk 0:02:00.8]} 15... Bxf6
{[%clk 0:02:37.8]} 16. Nxc6 {[%clk 0:02:00.4]} 16... bxc6 {[%clk 0:02:31.5]} 17.
Qxd6 {[%clk 0:01:58.8]} 17... Bb7 {[%clk 0:02:31.5]} 18. O-O-O {[%clk
0:01:45.3]} 18... Rd8 {[%clk 0:02:26.5]} 19. Qc5 {[%clk 0:01:43.7]} 19... Qxa2
{[%clk 0:02:17]} 20. Rxd8+ {[%clk 0:01:34.1]} 20... Bxd8 {[%clk 0:02:15.7]} 21.
e5 {[%clk 0:01:23.4]} 21... Qa1+ {[%clk 0:02:09.3]} 22. Kc2 {[%clk 0:01:21.8]}
22... Qa4+ {[%clk 0:02:09.4]} 23. Kb1 {[%clk 0:01:17.7]} 23... Be7 {[%clk
0:02:07.9]} 24. Qa7 {[%clk 0:01:11]} 24... Bc8 {[%clk 0:01:56.4]} 25. Qc7 {[%clk
0:01:00.9]} 25... Bd7 {[%clk 0:01:53.9]} 26. Qb8+ {[%clk 0:00:59.7]} 26... Bd8
{[%clk 0:01:53.4]} 27. Bc5 {[%clk 0:00:57.8]} 27... Qc4 {[%clk 0:01:50.8]} 28.
Qd6 {[%clk 0:00:55.9]} 28... Qb5 {[%clk 0:01:37]} 29. Rd1 {[%clk 0:00:53.6]}
29... Qb7 {[%clk 0:01:37.5]} 30. Rd4 {[%clk 0:00:49.8]} 30... Qc7 {[%clk
0:01:32.9]} 31. Rb4 {[%clk 0:00:47]} 31... Qxd6 {[%clk 0:01:32.7]} 32. Bxd6
{[%clk 0:00:46.4]} 32... f6 {[%clk 0:01:29.9]} 33. Rb8 {[%clk 0:00:44.4]} 33...
fxe5 {[%clk 0:01:29.9]} 34. fxe5 {[%clk 0:00:43.5]} 34... Kf7 {[%clk 0:01:25.7]}
35. Rb7 {[%clk 0:00:41.8]} 35... Ke8 {[%clk 0:01:25.5]} 36. Be4 {[%clk
0:00:40.2]} 36... Rg8 {[%clk 0:01:24.6]} 37. Rb8 {[%clk 0:00:26.3]} 37... Kf7
{[%clk 0:01:23.9]} 38. Rb7 {[%clk 0:00:26]} 38... Ke8 {[%clk 0:01:24.2]} 39. Rb8
{[%clk 0:00:24.3]} 39... g5 {[%clk 0:01:20]} 40. Bc7 {[%clk 0:00:23.5]} 40...
Ke7 {[%clk 0:01:19.3]} 41. Bd6+ {[%clk 0:00:20.4]} 41... Kf7 {[%clk 0:01:17.6]}
42. Rb7 {[%clk 0:00:19.5]} 42... Ke8 {[%clk 0:01:18]} 43. Kc2 {[%clk 0:00:17.5]}
43... g4 {[%clk 0:01:16.2]} 44. Bd3 {[%clk 0:00:17.6]} 44... h4 {[%clk
0:01:12.3]} 45. Bxa6 {[%clk 0:00:17.2]} 45... g3 {[%clk 0:01:12.3]} 46. Be2
{[%clk 0:00:16.9]} 46... Rg5 {[%clk 0:01:00.3]} 47. hxg3 {[%clk 0:00:16.3]}
47... hxg3 {[%clk 0:00:59.1]} 48. Bf3 {[%clk 0:00:09.8]} 48... Rf5 {[%clk
0:00:56.5]} 49. Be4 {[%clk 0:00:08.8]} 49... g2 {[%clk 0:00:55.3]} 50. Bxf5
{[%clk 0:00:07.2]} 50... g1=Q {[%clk 0:00:54.3]} 51. Bd3 {[%clk 0:00:06.5]}
51... Qf2+ {[%clk 0:00:54.3]} 52. Kb3 {[%clk 0:00:06.2]} 52... c5 {[%clk
0:00:50.7]} 53. Bg6+ {[%clk 0:00:06]} 53... Qf7 {[%clk 0:00:44.1]} 54. Bxf7+
{[%clk 0:00:06.5]} 54... Kxf7 {[%clk 0:00:45]} 55. Rxd7+ {[%clk 0:00:06.7]}
55... Ke8 {[%clk 0:00:45.9]} 56. Rxd8+ {[%clk 0:00:07.1]} 56... Kxd8 {[%clk
0:00:45.2]} 57. Kc4 {[%clk 0:00:06.3]} 57... Kd7 {[%clk 0:00:46.1]} 58. Kxc5
{[%clk 0:00:06.5]} 1-0

[Event "Early-Titled-Tuesday-Blitz-May-07-2024"]
[Site "Chess.com"]
[Date "2024.05.07"]
[Round "11"]
[White "tusplingher"]
[Black "unbreakablepawn35"]
[Result "1-0"]
[WhiteElo "2571"]
[BlackElo "2426"]
[TimeControl "180+1"]
[EndTime "10:14:48 PDT"]
[Termination "tusplingher won by resignation"]

1. e4 {[%clk 0:03:00.9]} 1... d5 {[%clk 0:02:53.5]} 2. exd5 {[%clk 0:02:58.8]}
2... Qxd5 {[%clk 0:02:54.4]} 3. Nc3 {[%clk 0:02:58.4]} 3... Qd8 {[%clk
0:02:53.6]} 4. Bc4 {[%clk 0:02:57.8]} 4... Nf6 {[%clk 0:02:53.5]} 5. d3 {[%clk
0:02:56.8]} 5... a6 {[%clk 0:02:51]} 6. a4 {[%clk 0:02:55.2]} 6... Nc6 {[%clk
0:02:50]} 7. h3 {[%clk 0:02:53.3]} 7... e5 {[%clk 0:02:46.6]} 8. Nf3 {[%clk
0:02:53.1]} 8... Bb4 {[%clk 0:02:45.3]} 9. O-O {[%clk 0:02:51.8]} 9... O-O
{[%clk 0:02:44.7]} 10. Ne4 {[%clk 0:02:46.3]} 10... Nxe4 {[%clk 0:02:42.1]} 11.
dxe4 {[%clk 0:02:46.3]} 11... Qxd1 {[%clk 0:02:23.6]} 12. Rxd1 {[%clk
0:02:45.9]} 12... Bd6 {[%clk 0:02:24]} 13. c3 {[%clk 0:02:40.4]} 13... h6 {[%clk
0:02:22.1]} 14. Be3 {[%clk 0:02:39.1]} 14... Kh7 {[%clk 0:02:19.4]} 15. Nd2
{[%clk 0:02:36]} 15... f5 {[%clk 0:02:17.5]} 16. exf5 {[%clk 0:02:34.1]} 16...
Bxf5 {[%clk 0:02:18.4]} 17. Bd5 {[%clk 0:02:32]} 17... Bd7 {[%clk 0:01:49.3]}
18. Nc4 {[%clk 0:02:23.6]} 18... Rf6 {[%clk 0:01:48.6]} 19. Be4+ {[%clk
0:02:18.8]} 19... g6 {[%clk 0:01:45.1]} 20. Rd2 {[%clk 0:02:13.2]} 20... Rd8
{[%clk 0:01:24.1]} 21. Rad1 {[%clk 0:02:09.9]} 21... Be8 {[%clk 0:01:24.1]} 22.
b3 {[%clk 0:01:53.6]} 22... b5 {[%clk 0:01:23.1]} 23. axb5 {[%clk 0:01:49.8]}
23... axb5 {[%clk 0:01:24]} 24. Bxc6 {[%clk 0:01:39.5]} 24... Bxc6 {[%clk
0:00:50.2]} 25. Nxe5 {[%clk 0:01:38.9]} 25... Be4 {[%clk 0:00:48.1]} 26. Ng4
{[%clk 0:01:36.4]} 26... Rf7 {[%clk 0:00:41.4]} 27. Bxh6 {[%clk 0:01:25.4]}
27... Bf5 {[%clk 0:00:34.2]} 28. Be3 {[%clk 0:01:18.7]} 28... Re8 {[%clk
0:00:31.3]} 29. Bd4 {[%clk 0:01:13.1]} 29... Bf4 {[%clk 0:00:22.5]} 30. Ra2
{[%clk 0:01:04]} 30... Bxg4 {[%clk 0:00:20.6]} 31. hxg4 {[%clk 0:01:03.8]} 31...
Rd7 {[%clk 0:00:20.6]} 32. g3 {[%clk 0:00:57.2]} 32... Be5 {[%clk 0:00:18.1]}
33. Rad2 {[%clk 0:00:54.3]} 33... Red8 {[%clk 0:00:17.5]} 34. Be3 {[%clk
0:00:46.8]} 34... Rxd2 {[%clk 0:00:17.4]} 35. Rxd2 {[%clk 0:00:47]} 35... Rxd2
{[%clk 0:00:17.9]} 36. Bxd2 {[%clk 0:00:47.4]} 36... Kg7 {[%clk 0:00:18.2]} 37.
Kf1 {[%clk 0:00:44.4]} 37... Kf6 {[%clk 0:00:17.5]} 38. Ke2 {[%clk 0:00:44.8]}
38... c5 {[%clk 0:00:13.6]} 39. Kd3 {[%clk 0:00:44.7]} 39... Ke6 {[%clk
0:00:12.3]} 40. Ke4 {[%clk 0:00:44.2]} 40... Bf6 {[%clk 0:00:11.6]} 41. f4
{[%clk 0:00:43.3]} 41... c4 {[%clk 0:00:11]} 42. bxc4 {[%clk 0:00:40.7]} 42...
bxc4 {[%clk 0:00:11.9]} 43. f5+ {[%clk 0:00:41]} 43... gxf5+ {[%clk 0:00:11.9]}
44. gxf5+ {[%clk 0:00:41.1]} 44... Kd6 {[%clk 0:00:09.2]} 45. g4 {[%clk
0:00:41.6]} 45... Ke7 {[%clk 0:00:09.5]} 46. g5 {[%clk 0:00:41.2]} 46... Bh8
{[%clk 0:00:06.5]} 47. Kd5 {[%clk 0:00:40.8]} 47... Kf7 {[%clk 0:00:06.6]} 48.
Kxc4 {[%clk 0:00:39.4]} 48... Be5 {[%clk 0:00:07.2]} 49. Kd5 {[%clk 0:00:39]}
49... Bb8 {[%clk 0:00:07.6]} 50. c4 {[%clk 0:00:39]} 50... Bh2 {[%clk
0:00:08.2]} 51. c5 {[%clk 0:00:38.7]} 51... Ke8 {[%clk 0:00:07.8]} 52. Ke6
{[%clk 0:00:37.9]} 52... Bb8 {[%clk 0:00:07.8]} 53. g6 {[%clk 0:00:34.2]} 53...
Kf8 {[%clk 0:00:08.7]} 54. f6 {[%clk 0:00:33.5]} 54... Kg8 {[%clk 0:00:08.7]}
55. Bh6 {[%clk 0:00:30.1]} 1-0

[Event "Early-Titled-Tuesday-Blitz-May-07-2024"]
[Site "Chess.com"]
[Date "2024.05.07"]
[Round "11"]
[White "chess_sharparchitect"]
[Black "Alina_Gumerovna"]
[Result "1-0"]
[WhiteElo "2267"]
[BlackElo "2180"]
[TimeControl "180+1"]
[EndTime "10:14:48 PDT"]
[Termination "chess_sharparchitect won on time"]

1. c4 {[%clk 0:03:00.9]} 1... Nf6 {[%clk 0:02:58.9]} 2. Nc3 {[%clk 0:02:59.2]}
2... g6 {[%clk 0:02:59.6]} 3. d4 {[%clk 0:02:58.6]} 3... Bg7 {[%clk 0:02:59.9]}
4. e4 {[%clk 0:02:58.9]} 4... d6 {[%clk 0:03:00.5]} 5. h3 {[%clk 0:02:59.1]}
5... O-O {[%clk 0:02:59.5]} 6. Be3 {[%clk 0:02:59.1]} 6... e5 {[%clk 0:02:57.8]}
7. d5 {[%clk 0:02:59.3]} 7... Nh5 {[%clk 0:02:45.1]} 8. g3 {[%clk 0:02:34.4]}
8... Qe8 {[%clk 0:02:29.6]} 9. Be2 {[%clk 0:02:25.1]} 9... f6 {[%clk 0:01:59.6]}
10. Qd2 {[%clk 0:01:40.2]} 10... f5 {[%clk 0:01:55.7]} 11. Bxh5 {[%clk
0:01:23.9]} 11... gxh5 {[%clk 0:01:45.2]} 12. Nge2 {[%clk 0:01:23.8]} 12... a5
{[%clk 0:01:12.9]} 13. O-O-O {[%clk 0:01:19.9]} 13... Na6 {[%clk 0:00:51.3]} 14.
exf5 {[%clk 0:01:14.6]} 14... Bxf5 {[%clk 0:00:48.6]} 15. g4 {[%clk 0:01:15.1]}
15... Bg6 {[%clk 0:00:20.8]} 16. gxh5 {[%clk 0:00:53.2]} 16... Bxh5 {[%clk
0:00:21.7]} 17. Rdg1 {[%clk 0:00:50.6]} 17... Bg6 {[%clk 0:00:20.9]} 18. h4
{[%clk 0:00:47.3]} 18... h5 {[%clk 0:00:20.8]} 19. Rg5 {[%clk 0:00:45.2]} 19...
Nb4 {[%clk 0:00:09.6]} 20. Rhg1 {[%clk 0:00:43.1]} 20... Rf6 {[%clk 0:00:08.3]}
21. Ng3 {[%clk 0:00:29.6]} 21... Bh6 {[%clk 0:00:05.6]} 22. Nxh5 {[%clk
0:00:20.6]} 22... Bxg5 {[%clk 0:00:05.1]} 23. Rxg5 {[%clk 0:00:20.1]} 23... Qf7
{[%clk 0:00:02.8]} 24. Nxf6+ {[%clk 0:00:18.8]} 24... Qxf6 {[%clk 0:00:03.7]}
25. h5 {[%clk 0:00:17.3]} 25... Nd3+ {[%clk 0:00:04]} 26. Kd1 {[%clk 0:00:17]}
26... Nxb2+ {[%clk 0:00:02.9]} 27. Qxb2 {[%clk 0:00:15.7]} 27... Qf3+ {[%clk
0:00:03.2]} 28. Qe2 {[%clk 0:00:14.1]} 28... Qh1+ {[%clk 0:00:02.2]} 29. Kd2
{[%clk 0:00:12.1]} 29... Kh7 {[%clk 0:00:02]} 30. hxg6+ {[%clk 0:00:11.9]} 30...
Kg7 {[%clk 0:00:02.4]} 31. Qh5 {[%clk 0:00:09.6]} 31... Rh8 {[%clk 0:00:01.3]}
32. Qxh1 {[%clk 0:00:09]} 32... Rxh1 {[%clk 0:00:02.2]} 33. Rg2 {[%clk
0:00:08.6]} 33... Ra1 {[%clk 0:00:01.2]} 34. Kd3 {[%clk 0:00:08.5]} 34... c6
{[%clk 0:00:01.6]} 35. dxc6 {[%clk 0:00:08.2]} 35... bxc6 {[%clk 0:00:02.5]} 36.
Bd2 {[%clk 0:00:08.5]} 36... Rf1 {[%clk 0:00:02.1]} 37. Ke2 {[%clk 0:00:07.9]}
37... Rh1 {[%clk 0:00:01.9]} 38. Rg3 {[%clk 0:00:07.9]} 38... Rh4 {[%clk
0:00:01.6]} 39. Rd3 {[%clk 0:00:07.6]} 1-0

[Event "Early-Titled-Tuesday-Blitz-May-07-2024"]
[Site "Chess.com"]
[Date "2024.05.07"]
[Round "11"]
[White "Felix-Rose"]
[Black "felipelobo"]
[Result "1-0"]
[WhiteElo "2206"]
[BlackElo "2049"]
[TimeControl "180+1"]
[EndTime "10:14:50 PDT"]
[Termination "Felix-Rose won on time"]

1. e4 {[%clk 0:03:00.2]} 1... c5 {[%clk 0:02:57.6]} 2. Nf3 {[%clk 0:03:00.3]}
2... d6 {[%clk 0:02:58]} 3. d4 {[%clk 0:03:00.5]} 3... cxd4 {[%clk 0:02:58.9]}
4. Nxd4 {[%clk 0:03:01.4]} 4... Nf6 {[%clk 0:02:59.5]} 5. Nc3 {[%clk 0:03:01.9]}
5... a6 {[%clk 0:02:59]} 6. Be3 {[%clk 0:03:01.3]} 6... Ng4 {[%clk 0:02:58.7]}
7. Bc1 {[%clk 0:03:01.4]} 7... Nf6 {[%clk 0:02:58.4]} 8. h3 {[%clk 0:03:00.5]}
8... e5 {[%clk 0:02:57.6]} 9. Nf3 {[%clk 0:03:00]} 9... h6 {[%clk 0:02:57.3]}
10. g4 {[%clk 0:02:59.1]} 10... Be6 {[%clk 0:02:56.9]} 11. g5 {[%clk 0:02:56.3]}
11... hxg5 {[%clk 0:02:56.9]} 12. Nxg5 {[%clk 0:02:50.9]} 12... Nc6 {[%clk
0:02:46.5]} 13. Be2 {[%clk 0:02:48.7]} 13... Be7 {[%clk 0:02:43.6]} 14. Be3
{[%clk 0:02:40.6]} 14... Qa5 {[%clk 0:02:41.5]} 15. Qd2 {[%clk 0:02:29.2]} 15...
O-O-O {[%clk 0:02:34.6]} 16. O-O-O {[%clk 0:02:26.1]} 16... Kb8 {[%clk
0:02:18.2]} 17. Kb1 {[%clk 0:02:23.8]} 17... Rc8 {[%clk 0:02:15.2]} 18. Nxe6
{[%clk 0:02:05.9]} 18... fxe6 {[%clk 0:02:16.1]} 19. f3 {[%clk 0:02:02]} 19...
Nh5 {[%clk 0:01:42.9]} 20. Rdg1 {[%clk 0:02:01.2]} 20... Bh4 {[%clk 0:01:33.4]}
21. Qxd6+ {[%clk 0:01:56.7]} 21... Ka8 {[%clk 0:01:33.5]} 22. Qxe6 {[%clk
0:01:43.9]} 22... Nd4 {[%clk 0:01:17.5]} 23. Bxd4 {[%clk 0:01:38.4]} 23... exd4
{[%clk 0:01:17.4]} 24. Nd5 {[%clk 0:01:38.6]} 24... Ng3 {[%clk 0:01:15.8]} 25.
Nb6+ {[%clk 0:01:29]} 25... Kb8 {[%clk 0:01:13.2]} 26. Qd6+ {[%clk 0:01:25.2]}
26... Rc7 {[%clk 0:01:02.5]} 27. Nc4 {[%clk 0:01:21.4]} 27... Qa4 {[%clk
0:00:33.5]} 28. Rxg3 {[%clk 0:01:18.7]} 28... Bxg3 {[%clk 0:00:32.9]} 29. Qxg3
{[%clk 0:01:18.6]} 29... b5 {[%clk 0:00:31.8]} 30. b3 {[%clk 0:01:13.7]} 30...
Qb4 {[%clk 0:00:28.6]} 31. Nb6 {[%clk 0:01:13.6]} 31... Qc3 {[%clk 0:00:17.7]}
32. Bd3 {[%clk 0:01:08.5]} 32... Kb7 {[%clk 0:00:17.2]} 33. Nd5 {[%clk
0:01:07.4]} 33... Qc6 {[%clk 0:00:10.7]} 34. Qxc7+ {[%clk 0:01:05.7]} 34... Qxc7
{[%clk 0:00:11.6]} 35. Nxc7 {[%clk 0:01:06.6]} 35... Kxc7 {[%clk 0:00:12.5]} 36.
f4 {[%clk 0:01:06.8]} 36... Kd6 {[%clk 0:00:12.5]} 37. e5+ {[%clk 0:01:06.8]}
37... Kc5 {[%clk 0:00:13.4]} 38. Kb2 {[%clk 0:01:01.9]} 38... b4 {[%clk
0:00:12.7]} 39. h4 {[%clk 0:01:00.5]} 39... a5 {[%clk 0:00:13.6]} 40. h5 {[%clk
0:01:00.7]} 40... Rh6 {[%clk 0:00:13.1]} 41. Bg6 {[%clk 0:01:00.8]} 41... Rh8
{[%clk 0:00:11.6]} 42. f5 {[%clk 0:01:00]} 42... Kd5 {[%clk 0:00:11.7]} 43. Re1
{[%clk 0:01:00]} 43... Rf8 {[%clk 0:00:09.6]} 44. e6 {[%clk 0:01:00.3]} 44... d3
{[%clk 0:00:07.2]} 45. cxd3 {[%clk 0:01:00]} 45... Rc8 {[%clk 0:00:05.8]} 46. e7
{[%clk 0:00:59.5]} 46... Rc5 {[%clk 0:00:02.7]} 47. e8=Q {[%clk 0:00:57.9]}
47... Rc2+ {[%clk 0:00:02.4]} 48. Kb1 {[%clk 0:00:55.8]} 48... Kd4 {[%clk
0:00:03.3]} 49. Qe5+ {[%clk 0:00:54.9]} 49... Kxd3 {[%clk 0:00:03.1]} 50. f6+
{[%clk 0:00:55.6]} 50... Kd2 {[%clk 0:00:03.1]} 51. Bxc2 {[%clk 0:00:52]} 1-0

[Event "Early-Titled-Tuesday-Blitz-May-07-2024"]
[Site "Chess.com"]
[Date "2024.05.07"]
[Round "11"]
[White "Nf3c5"]
[Black "francyIM"]
[Result "1-0"]
[WhiteElo "2618"]
[BlackElo "2775"]
[TimeControl "180+1"]
[EndTime "10:14:52 PDT"]
[Termination "Nf3c5 won by resignation"]

1. e4 {[%clk 0:02:58.6]} 1... c6 {[%clk 0:02:56.3]} 2. d4 {[%clk 0:02:57.8]}
2... d5 {[%clk 0:02:57.2]} 3. exd5 {[%clk 0:02:57.9]} 3... cxd5 {[%clk
0:02:57.5]} 4. Bd3 {[%clk 0:02:58.5]} 4... Nc6 {[%clk 0:02:58]} 5. c3 {[%clk
0:02:59.1]} 5... Qc7 {[%clk 0:02:55.6]} 6. h3 {[%clk 0:02:54.9]} 6... g6 {[%clk
0:02:53.9]} 7. Nf3 {[%clk 0:02:54.8]} 7... Bf5 {[%clk 0:02:54.5]} 8. Be2 {[%clk
0:02:55.4]} 8... e6 {[%clk 0:02:53.3]} 9. O-O {[%clk 0:02:55.9]} 9... Bd6 {[%clk
0:02:53.4]} 10. Re1 {[%clk 0:02:47.3]} 10... h6 {[%clk 0:02:47.8]} 11. c4 {[%clk
0:02:36.7]} 11... Bxb1 {[%clk 0:02:43.6]} 12. Rxb1 {[%clk 0:02:36]} 12... Nge7
{[%clk 0:02:43]} 13. c5 {[%clk 0:02:15.2]} 13... Bf4 {[%clk 0:02:35]} 14. b4
{[%clk 0:02:15.9]} 14... Bxc1 {[%clk 0:02:35]} 15. Qxc1 {[%clk 0:02:15.3]} 15...
Nf5 {[%clk 0:02:35.1]} 16. Qd2 {[%clk 0:02:08.7]} 16... g5 {[%clk 0:02:30.5]}
17. b5 {[%clk 0:02:07.5]} 17... Nce7 {[%clk 0:02:06.2]} 18. Ne5 {[%clk
0:01:56.4]} 18... O-O {[%clk 0:02:06.2]} 19. a4 {[%clk 0:01:27.3]} 19... f6
{[%clk 0:02:02.5]} 20. Nf3 {[%clk 0:01:23.2]} 20... Qf4 {[%clk 0:02:00.3]} 21.
Qxf4 {[%clk 0:01:16.5]} 21... gxf4 {[%clk 0:01:56.8]} 22. Bd3 {[%clk 0:01:17.4]}
22... Kf7 {[%clk 0:01:55.5]} 23. Rb2 {[%clk 0:01:16.1]} 23... Ng7 {[%clk
0:01:48.6]} 24. a5 {[%clk 0:01:07.7]} 24... Rfc8 {[%clk 0:01:47.5]} 25. Ra2
{[%clk 0:00:55.6]} 25... a6 {[%clk 0:01:46.8]} 26. bxa6 {[%clk 0:00:51.5]} 26...
bxa6 {[%clk 0:01:47.7]} 27. Rb1 {[%clk 0:00:51.4]} 27... Ne8 {[%clk 0:01:36]}
28. Rb6 {[%clk 0:00:51.3]} 28... Nc7 {[%clk 0:01:36.9]} 29. Rab2 {[%clk
0:00:46.5]} 29... Nb5 {[%clk 0:01:35.2]} 30. Bxb5 {[%clk 0:00:45.5]} 30... axb5
{[%clk 0:01:36.1]} 31. R2xb5 {[%clk 0:00:45]} 31... Nc6 {[%clk 0:01:36.4]} 32.
a6 {[%clk 0:00:44.1]} 32... e5 {[%clk 0:01:34.8]} 33. dxe5 {[%clk 0:00:42.4]}
33... d4 {[%clk 0:01:31.6]} 34. exf6 {[%clk 0:00:38]} 34... d3 {[%clk
0:01:29.2]} 35. Rb3 {[%clk 0:00:35.3]} 35... d2 {[%clk 0:01:28.6]} 36. Nxd2
{[%clk 0:00:34.1]} 36... Nd4 {[%clk 0:01:28.2]} 37. Rb2 {[%clk 0:00:30.7]} 37...
Rxc5 {[%clk 0:01:27.4]} 38. Ne4 {[%clk 0:00:31.3]} 38... Re5 {[%clk 0:01:26.8]}
39. f3 {[%clk 0:00:31.2]} 39... Nf5 {[%clk 0:01:26.2]} 40. Kf2 {[%clk
0:00:30.3]} 40... Ra5 {[%clk 0:01:22.9]} 41. R2b5 {[%clk 0:00:27.8]} 41... R8xa6
{[%clk 0:01:16]} 42. Rxa5 {[%clk 0:00:13.5]} 42... Rxa5 {[%clk 0:01:14]} 43.
Rb7+ {[%clk 0:00:13.8]} 43... Kf8 {[%clk 0:01:12.2]} 44. Rb2 {[%clk 0:00:11.2]}
44... Rd5 {[%clk 0:01:10.9]} 45. Rc2 {[%clk 0:00:10.6]} 45... Rd1 {[%clk
0:01:07.5]} 46. Ra2 {[%clk 0:00:09.5]} 46... h5 {[%clk 0:01:05.6]} 47. Ra8+
{[%clk 0:00:09.9]} 47... Kf7 {[%clk 0:01:05.7]} 48. Ra7+ {[%clk 0:00:10.6]}
48... Kg6 {[%clk 0:01:06.2]} 49. f7 {[%clk 0:00:11]} 49... Kg7 {[%clk
0:01:06.6]} 50. Ng5 {[%clk 0:00:10.1]} 50... Rd2+ {[%clk 0:00:43.9]} 51. Ke1
{[%clk 0:00:09.7]} 51... Rd6 {[%clk 0:00:44]} 52. Nh7 {[%clk 0:00:10.4]} 52...
Re6+ {[%clk 0:00:35.3]} 53. Kf2 {[%clk 0:00:09.5]} 1-0

[Event "Early-Titled-Tuesday-Blitz-May-07-2024"]
[Site "Chess.com"]
[Date "2024.05.07"]
[Round "11"]
[White "Zhigalko_Sergei"]
[Black "FoggyMorning"]
[Result "1-0"]
[WhiteElo "2882"]
[BlackElo "2648"]
[TimeControl "180+1"]
[EndTime "10:14:53 PDT"]
[Termination "Zhigalko_Sergei won by resignation"]

1. e4 {[%clk 0:03:00.9]} 1... e6 {[%clk 0:02:59.9]} 2. d4 {[%clk 0:03:00.9]}
2... d5 {[%clk 0:03:00.6]} 3. e5 {[%clk 0:03:01.4]} 3... c5 {[%clk 0:03:00.8]}
4. c3 {[%clk 0:03:01.1]} 4... Qb6 {[%clk 0:03:01.2]} 5. Nf3 {[%clk 0:03:01.1]}
5... Nc6 {[%clk 0:03:01.9]} 6. a3 {[%clk 0:02:59.6]} 6... Nh6 {[%clk 0:03:01.5]}
7. b4 {[%clk 0:03:00]} 7... cxd4 {[%clk 0:03:00.3]} 8. cxd4 {[%clk 0:03:00.9]}
8... Nf5 {[%clk 0:03:00.1]} 9. Be3 {[%clk 0:03:01.6]} 9... f6 {[%clk 0:02:55.8]}
10. exf6 {[%clk 0:03:02.1]} 10... gxf6 {[%clk 0:02:56.7]} 11. Bd3 {[%clk
0:03:02.6]} 11... Nxe3 {[%clk 0:02:57.1]} 12. fxe3 {[%clk 0:03:03.5]} 12... Bh6
{[%clk 0:02:57.4]} 13. Qe2 {[%clk 0:03:04.1]} 13... Bd7 {[%clk 0:02:57.7]} 14.
O-O {[%clk 0:03:04.1]} 14... O-O {[%clk 0:02:51.5]} 15. Nc3 {[%clk 0:02:31.1]}
15... Rac8 {[%clk 0:02:48.2]} 16. Qe1 {[%clk 0:02:05]} 16... Ne7 {[%clk
0:02:33.7]} 17. Kh1 {[%clk 0:02:04.5]} 17... Kh8 {[%clk 0:02:24.8]} 18. Qh4
{[%clk 0:01:35.4]} 18... Ng8 {[%clk 0:02:24]} 19. Ne2 {[%clk 0:01:20.3]} 19...
Rf7 {[%clk 0:02:13.7]} 20. Ne5 {[%clk 0:01:05.6]} 20... Rg7 {[%clk 0:02:13.9]}
21. Rxf6 {[%clk 0:00:44.5]} 21... Nxf6 {[%clk 0:01:10.7]} 22. Qxf6 {[%clk
0:00:38.3]} 22... Bxe3 {[%clk 0:01:03.6]} 23. Nxd7 {[%clk 0:00:20.7]} 23... Qd8
{[%clk 0:00:50.3]} 24. Qxe6 {[%clk 0:00:15.2]} 24... Qg5 {[%clk 0:00:18.5]} 25.
Ng3 {[%clk 0:00:06.6]} 25... Bf4 {[%clk 0:00:15.8]} 26. Ne5 {[%clk 0:00:06.8]}
26... Rf8 {[%clk 0:00:12.7]} 27. Nf3 {[%clk 0:00:06.6]} 27... Qd8 {[%clk
0:00:11.4]} 28. Nh5 {[%clk 0:00:06.6]} 28... Re7 {[%clk 0:00:09.1]} 29. Qg4
{[%clk 0:00:05.7]} 29... Be3 {[%clk 0:00:08.9]} 30. Rf1 {[%clk 0:00:04.7]} 30...
Rg8 {[%clk 0:00:09]} 31. Qh3 {[%clk 0:00:03.8]} 31... Qe8 {[%clk 0:00:09.1]} 32.
Nf6 {[%clk 0:00:03.8]} 32... Qf7 {[%clk 0:00:07.5]} 33. Nxg8 {[%clk 0:00:04]}
33... Qxg8 {[%clk 0:00:08.4]} 34. Qf5 {[%clk 0:00:03.8]} 34... Rg7 {[%clk
0:00:07.3]} 35. Qe5 {[%clk 0:00:03.8]} 35... Bh6 {[%clk 0:00:07.2]} 36. h3
{[%clk 0:00:04]} 36... Qd8 {[%clk 0:00:06.8]} 37. Nh2 {[%clk 0:00:03.7]} 37...
Kg8 {[%clk 0:00:07.3]} 38. Ng4 {[%clk 0:00:03.6]} 38... Bg5 {[%clk 0:00:07.5]}
39. Qe6+ {[%clk 0:00:02.5]} 39... Kh8 {[%clk 0:00:08.1]} 40. Qf5 {[%clk
0:00:02.6]} 40... h5 {[%clk 0:00:07.9]} 41. Ne5 {[%clk 0:00:02.9]} 41... Qe7
{[%clk 0:00:07.8]} 42. Nf7+ {[%clk 0:00:03.2]} 42... Kg8 {[%clk 0:00:07.7]} 43.
Nxg5 {[%clk 0:00:03.5]} 43... Rxg5 {[%clk 0:00:08.3]} 44. Qf3 {[%clk 0:00:03.4]}
44... Rg7 {[%clk 0:00:08.1]} 45. Qxd5+ {[%clk 0:00:03.3]} 45... Kh8 {[%clk
0:00:08.3]} 46. Qxh5+ {[%clk 0:00:03.5]} 46... Kg8 {[%clk 0:00:09]} 47. Bc4+
{[%clk 0:00:04.1]} 1-0